[Event "Titled Tuesday Blitz May 10 Early 2022"]
[White "Fedoseev, Vladimir"]
[Black "Khubukshanov, Erdem"]
[WhiteFideId "24130737"]
[BlackFideId "54114527"]
[WhiteElo "2726"]
[BlackElo "2306"]
[Result "1-0"]
[Round "02"]
[TimeControl "180+1"]
[Date "2022.05.10"]
[WhiteClock "0:01:09"]
[BlackClock "0:00:07"]

1. Nf3 {[%clk 0:03:00]}  d5 {[%clk 0:02:59]} 2. g3 {[%clk 0:02:59]}  g6 {[%clk 0:03:00]} 3. Bg2 {[%clk 0:02:59]}  Bg7 {[%clk 0:03:00]} 4. d4 {[%clk 0:02:59]}  c6 {[%clk 0:02:56]} 5. O-O {[%clk 0:02:59]}  Bg4 {[%clk 0:02:56]} 6. c3 {[%clk 0:02:57]}  Nd7 {[%clk 0:02:55]} 7. h3 {[%clk 0:02:55]}  Bxf3 {[%clk 0:02:54]} 8. exf3 {[%clk 0:02:55]}  Ngf6 {[%clk 0:02:49]} 9. f4 {[%clk 0:02:55]}  O-O {[%clk 0:02:49]} 10. Nd2 {[%clk 0:02:54]}  Qc7 {[%clk 0:02:40]} 11. Re1 {[%clk 0:02:54]}  Rfe8 {[%clk 0:02:37]} 12. Nf3 {[%clk 0:02:51]}  c5 {[%clk 0:02:29]} 13. dxc5 {[%clk 0:02:47]}  Nxc5 {[%clk 0:02:27]} 14. Be3 {[%clk 0:02:47]}  b5 {[%clk 0:01:52]} 15. Qe2 {[%clk 0:02:44]}  a6 {[%clk 0:01:48]} 16. Rad1 {[%clk 0:02:41]}  Na4 {[%clk 0:01:42]} 17. Bd4 {[%clk 0:02:27]}  e6 {[%clk 0:01:38]} 18. Ne5 {[%clk 0:02:21]}  Rab8 {[%clk 0:01:26]} 19. Rc1 {[%clk 0:02:12]}  Nd7 {[%clk 0:01:17]} 20. Nxd7 {[%clk 0:01:51]}  Qxd7 {[%clk 0:01:18]} 21. Bxg7 {[%clk 0:01:50]}  Kxg7 {[%clk 0:01:19]} 22. b3 {[%clk 0:01:50]}  Nb6 {[%clk 0:01:14]} 23. Qe5+ {[%clk 0:01:48]}  Kg8 {[%clk 0:01:01]} 24. h4 {[%clk 0:01:46]}  Rbc8 {[%clk 0:00:48]} 25. h5 {[%clk 0:01:46]}  Qc7 {[%clk 0:00:46]} 26. Qd4 {[%clk 0:01:42]}  Qc5 {[%clk 0:00:45]} 27. Qd2 {[%clk 0:01:38]}  a5 {[%clk 0:00:37]} 28. Bh3 {[%clk 0:01:32]}  a4 {[%clk 0:00:27]} 29. f5 {[%clk 0:01:26]}  exf5 {[%clk 0:00:27]} 30. Bxf5 {[%clk 0:01:17]}  gxf5 {[%clk 0:00:21]} 31. Qg5+ {[%clk 0:01:16]}  Kh8 {[%clk 0:00:21]} 32. Qf6+ {[%clk 0:01:15]}  Kg8 {[%clk 0:00:19]} 33. h6 {[%clk 0:01:13]}  Qf8 {[%clk 0:00:11]} 34. Qxb6 {[%clk 0:01:12]}  Rxe1+ {[%clk 0:00:11]} 35. Rxe1 {[%clk 0:01:11]}  axb3 {[%clk 0:00:12]} 36. axb3 {[%clk 0:01:09]}  Rxc3 {[%clk 0:00:12]} 37. Qf6 {[%clk 0:01:09]}  Rc8 {[%clk 0:00:08]} 38. Re5 {[%clk 0:01:09]}  Re8 {[%clk 0:00:07]} 39. Rxe8 {[%clk 0:01:09]} 1-0


[Site "https://www.chess.com"]

[Event "Titled Tuesday Blitz May 10 Early 2022"]
[White "Ferreira, Vitor Hugo Vieira"]
[Black "Priyanka, K"]
[WhiteFideId "2119765"]
[BlackFideId "5082986"]
[WhiteElo "2165"]
[BlackElo "1905"]
[Result "1-0"]
[Round "02"]
[TimeControl "180+1"]
[Date "2022.05.11"]
[WhiteClock "0:00:55"]
[BlackClock "0:00:02"]

1. d4 {[%clk 0:03:00]}  Nf6 {[%clk 0:02:59]} 2. c4 {[%clk 0:03:00]}  g6 {[%clk 0:03:00]} 3. Nf3 {[%clk 0:03:00]}  Bg7 {[%clk 0:03:00]} 4. g3 {[%clk 0:03:00]}  d6 {[%clk 0:03:00]} 5. Bg2 {[%clk 0:03:01]}  O-O {[%clk 0:03:01]} 6. O-O {[%clk 0:03:01]}  Nc6 {[%clk 0:02:58]} 7. Nc3 {[%clk 0:03:02]}  Bg4 {[%clk 0:02:59]} 8. h3 {[%clk 0:02:56]}  Bxf3 {[%clk 0:02:56]} 9. Bxf3 {[%clk 0:02:51]}  Nd7 {[%clk 0:02:56]} 10. e3 {[%clk 0:02:45]}  e5 {[%clk 0:02:54]} 11. d5 {[%clk 0:02:41]}  Ne7 {[%clk 0:02:52]} 12. Bg2 {[%clk 0:02:32]}  f5 {[%clk 0:02:49]} 13. f4 {[%clk 0:02:32]}  a5 {[%clk 0:02:37]} 14. Qc2 {[%clk 0:02:30]}  Nc5 {[%clk 0:02:35]} 15. b3 {[%clk 0:02:29]}  e4 {[%clk 0:02:33]} 16. Bb2 {[%clk 0:02:29]}  Nd3 {[%clk 0:02:31]} 17. Nd1 {[%clk 0:02:29]}  Nxb2 {[%clk 0:02:29]} 18. Nxb2 {[%clk 0:02:29]}  Nc8 {[%clk 0:02:17]} 19. Rad1 {[%clk 0:02:24]}  Nb6 {[%clk 0:02:10]} 20. Rf2 {[%clk 0:02:19]}  Bxb2 {[%clk 0:01:59]} 21. Qxb2 {[%clk 0:02:18]}  Nd7 {[%clk 0:01:59]} 22. Bf1 {[%clk 0:02:15]}  Qf6 {[%clk 0:01:54]} 23. a3 {[%clk 0:02:13]}  Qxb2 {[%clk 0:01:50]} 24. Rxb2 {[%clk 0:02:12]}  b6 {[%clk 0:01:34]} 25. g4 {[%clk 0:02:05]}  Kg7 {[%clk 0:01:26]} 26. g5 {[%clk 0:02:03]}  h6 {[%clk 0:01:21]} 27. h4 {[%clk 0:02:03]}  hxg5 {[%clk 0:01:21]} 28. hxg5 {[%clk 0:02:03]}  Rh8 {[%clk 0:01:21]} 29. Rdd2 {[%clk 0:02:00]}  Rh4 {[%clk 0:01:15]} 30. Rh2 {[%clk 0:02:00]}  Rxh2 {[%clk 0:01:08]} 31. Rxh2 {[%clk 0:01:59]}  Nc5 {[%clk 0:01:08]} 32. Rb2 {[%clk 0:01:56]}  Rh8 {[%clk 0:01:06]} 33. b4 {[%clk 0:01:54]}  axb4 {[%clk 0:00:54]} 34. axb4 {[%clk 0:01:53]}  Nd7 {[%clk 0:00:25]} 35. Ra2 {[%clk 0:01:53]}  b5 {[%clk 0:00:12]} 36. Ra7 {[%clk 0:01:47]}  Rc8 {[%clk 0:00:10]} 37. c5 {[%clk 0:01:35]}  dxc5 {[%clk 0:00:07]} 38. Bxb5 {[%clk 0:01:35]}  Nb6 {[%clk 0:00:06]} 39. d6 {[%clk 0:01:32]}  cxb4 {[%clk 0:00:04]} 40. Ba6 {[%clk 0:01:16]}  Rd8 {[%clk 0:00:03]} 41. dxc7 {[%clk 0:01:08]}  Rd1+ {[%clk 0:00:02]} 42. Kf2 {[%clk 0:01:04]}  Kf8 {[%clk 0:00:02]} 43. Ra8+ {[%clk 0:01:02]}  Ke7 {[%clk 0:00:02]} 44. c8=Q {[%clk 0:01:02]}  Nxc8 {[%clk 0:00:02]} 45. Rxc8 {[%clk 0:01:03]}  b3 {[%clk 0:00:01]} 46. Rb8 {[%clk 0:01:03]}  Rd2+ {[%clk 0:00:01]} 47. Ke1 {[%clk 0:01:00]}  Rb2 {[%clk 0:00:01]} 48. Bc4 {[%clk 0:01:00]}  Rb1+ {[%clk 0:00:01]} 49. Kd2 {[%clk 0:00:59]}  Rb2+ {[%clk 0:00:02]} 50. Kc3 {[%clk 0:00:59]}  Rb1 {[%clk 0:00:02]} 51. Rxb3 {[%clk 0:00:58]}  Re1 {[%clk 0:00:02]} 52. Kd4 {[%clk 0:00:58]}  Rd1+ {[%clk 0:00:02]} 53. Ke5 {[%clk 0:00:57]}  Rd7 {[%clk 0:00:02]} 54. Bd5 {[%clk 0:00:55]} 1-0


[Site "https://www.chess.com"]

[Event "Titled Tuesday Blitz May 10 Early 2022"]
[White "Fier, Alexandr"]
[Black "Maghsoodloo, Parham"]
[WhiteFideId "2107139"]
[BlackFideId "12539929"]
[WhiteElo "2571"]
[BlackElo "2630"]
[Result "1-0"]
[Round "02"]
[TimeControl "180+1"]
[Date "2022.05.10"]
[WhiteClock "0:00:12"]
[BlackClock "0:00:03"]

1. d4 {[%clk 0:03:00]}  Nf6 {[%clk 0:02:55]} 2. c4 {[%clk 0:03:00]}  e6 {[%clk 0:02:56]} 3. Nc3 {[%clk 0:03:00]}  Bb4 {[%clk 0:02:56]} 4. e3 {[%clk 0:03:00]}  c5 {[%clk 0:02:56]} 5. Ne2 {[%clk 0:03:00]}  cxd4 {[%clk 0:02:56]} 6. exd4 {[%clk 0:03:00]}  b6 {[%clk 0:02:57]} 7. a3 {[%clk 0:03:00]}  Be7 {[%clk 0:02:57]} 8. Nf4 {[%clk 0:02:59]}  d6 {[%clk 0:02:56]} 9. Be2 {[%clk 0:02:59]}  Bb7 {[%clk 0:02:56]} 10. O-O {[%clk 0:02:58]}  Nbd7 {[%clk 0:02:56]} 11. Be3 {[%clk 0:02:58]}  O-O {[%clk 0:02:56]} 12. b4 {[%clk 0:02:55]}  a5 {[%clk 0:02:54]} 13. Re1 {[%clk 0:02:53]}  Re8 {[%clk 0:02:54]} 14. Bf1 {[%clk 0:02:32]}  Bf8 {[%clk 0:02:51]} 15. h3 {[%clk 0:02:29]}  h6 {[%clk 0:02:49]} 16. Qb3 {[%clk 0:02:23]}  Qc8 {[%clk 0:02:47]} 17. Rad1 {[%clk 0:02:22]}  axb4 {[%clk 0:02:44]} 18. axb4 {[%clk 0:02:22]}  Qb8 {[%clk 0:02:29]} 19. d5 {[%clk 0:02:15]}  e5 {[%clk 0:02:29]} 20. Nfe2 {[%clk 0:02:15]}  Ba6 {[%clk 0:02:25]} 21. Ng3 {[%clk 0:02:13]}  Qc7 {[%clk 0:02:25]} 22. Ra1 {[%clk 0:02:07]}  Rec8 {[%clk 0:02:25]} 23. b5 {[%clk 0:01:48]}  Bb7 {[%clk 0:02:25]} 24. Nf5 {[%clk 0:01:48]}  Kh7 {[%clk 0:02:07]} 25. Qb2 {[%clk 0:01:29]}  g6 {[%clk 0:01:59]} 26. Ng3 {[%clk 0:01:28]}  Bg7 {[%clk 0:01:57]} 27. Rxa8 {[%clk 0:01:27]}  Rxa8 {[%clk 0:01:57]} 28. Ra1 {[%clk 0:01:28]}  Qb8 {[%clk 0:01:53]} 29. Rxa8 {[%clk 0:01:19]}  Qxa8 {[%clk 0:01:53]} 30. Qa2 {[%clk 0:01:19]}  Qb8 {[%clk 0:01:53]} 31. Na4 {[%clk 0:01:14]}  Bc8 {[%clk 0:01:48]} 32. Ne2 {[%clk 0:01:13]}  Ne4 {[%clk 0:01:45]} 33. Nec3 {[%clk 0:01:12]}  Nxc3 {[%clk 0:01:44]} 34. Nxc3 {[%clk 0:01:13]}  f5 {[%clk 0:01:44]} 35. Qa3 {[%clk 0:01:07]}  Nc5 {[%clk 0:01:31]} 36. Bxc5 {[%clk 0:01:04]}  dxc5 {[%clk 0:01:31]} 37. Na4 {[%clk 0:00:58]}  e4 {[%clk 0:01:29]} 38. Nc3 {[%clk 0:00:48]}  h5 {[%clk 0:01:10]} 39. Ne2 {[%clk 0:00:45]}  h4 {[%clk 0:01:09]} 40. Qe3 {[%clk 0:00:43]}  Bh6 {[%clk 0:01:08]} 41. Qc3 {[%clk 0:00:43]}  Qd6 {[%clk 0:01:08]} 42. Qa3 {[%clk 0:00:43]}  Qb8 {[%clk 0:01:03]} 43. Qc3 {[%clk 0:00:43]}  Bg5 {[%clk 0:01:01]} 44. g3 {[%clk 0:00:33]}  Bd7 {[%clk 0:00:57]} 45. Qb2 {[%clk 0:00:30]}  hxg3 {[%clk 0:00:53]} 46. fxg3 {[%clk 0:00:31]}  Kg8 {[%clk 0:00:46]} 47. Kg2 {[%clk 0:00:31]}  Kf7 {[%clk 0:00:46]} 48. h4 {[%clk 0:00:31]}  Bf6 {[%clk 0:00:46]} 49. Qd2 {[%clk 0:00:31]}  Qe5 {[%clk 0:00:47]} 50. Qa2 {[%clk 0:00:30]}  Qb8 {[%clk 0:00:42]} 51. Qd2 {[%clk 0:00:30]}  Kg7 {[%clk 0:00:40]} 52. Nf4 {[%clk 0:00:28]}  Bd4 {[%clk 0:00:38]} 53. Qa2 {[%clk 0:00:26]}  Be5 {[%clk 0:00:33]} 54. Ne6+ {[%clk 0:00:24]}  Bxe6 {[%clk 0:00:33]} 55. dxe6 {[%clk 0:00:25]}  Kf6 {[%clk 0:00:34]} 56. Qd2 {[%clk 0:00:25]}  Kxe6 {[%clk 0:00:31]} 57. Qd5+ {[%clk 0:00:25]}  Kf6 {[%clk 0:00:30]} 58. Qc6+ {[%clk 0:00:26]}  Kg7 {[%clk 0:00:31]} 59. Qd7+ {[%clk 0:00:23]}  Kh6 {[%clk 0:00:31]} 60. h5 {[%clk 0:00:24]}  Qg8 {[%clk 0:00:16]} 61. Qc6 {[%clk 0:00:23]}  Kxh5 {[%clk 0:00:13]} 62. Qxb6 {[%clk 0:00:23]}  Qf8 {[%clk 0:00:12]} 63. Qe6 {[%clk 0:00:22]}  Qd6 {[%clk 0:00:12]} 64. Qf7 {[%clk 0:00:18]}  Qd2+ {[%clk 0:00:11]} 65. Kh3 {[%clk 0:00:18]}  Kg5 {[%clk 0:00:09]} 66. Qh7 {[%clk 0:00:18]}  Kf6 {[%clk 0:00:09]} 67. Qh8+ {[%clk 0:00:18]}  Ke6 {[%clk 0:00:10]} 68. Qe8+ {[%clk 0:00:19]}  Kf6 {[%clk 0:00:10]} 69. Qh8+ {[%clk 0:00:19]}  Ke6 {[%clk 0:00:11]} 70. Qe8+ {[%clk 0:00:19]}  Kf6 {[%clk 0:00:08]} 71. Qf8+ {[%clk 0:00:19]}  Kg5 {[%clk 0:00:06]} 72. Qe7+ {[%clk 0:00:19]}  Bf6 {[%clk 0:00:06]} 73. Qxc5 {[%clk 0:00:20]}  Qe1 {[%clk 0:00:05]} 74. Bg2 {[%clk 0:00:17]}  e3 {[%clk 0:00:05]} 75. Qd6 {[%clk 0:00:16]}  Qf2 {[%clk 0:00:05]} 76. b6 {[%clk 0:00:13]}  e2 {[%clk 0:00:05]} 77. b7 {[%clk 0:00:12]}  e1=Q {[%clk 0:00:05]} 78. b8=Q {[%clk 0:00:12]}  Qee2 {[%clk 0:00:03]} 79. Qf4+ {[%clk 0:00:12]}  Kh5 {[%clk 0:00:03]} 80. Qh8+ {[%clk 0:00:11]}  Bxh8 {[%clk 0:00:03]} 81. Qh4# {[%clk 0:00:12]} 1-0


[Site "https://www.chess.com"]

[Event "Titled Tuesday Blitz May 10 Early 2022"]
[White "Gallego Alcaraz, Andres Felipe"]
[Black "Vifleemskaia, Svetlana"]
[WhiteFideId "4402669"]
[BlackFideId "4129490"]
[WhiteElo "2340"]
[BlackElo "1929"]
[Result "0-1"]
[Round "02"]
[TimeControl "180+1"]
[Date "2022.05.11"]
[WhiteClock "0:02:11"]
[BlackClock "0:01:35"]

1. d4 {[%clk 0:03:00]}  Nf6 {[%clk 0:02:59]} 2. Nf3 {[%clk 0:03:00]}  d5 {[%clk 0:02:58]} 3. c4 {[%clk 0:03:00]}  dxc4 {[%clk 0:02:58]} 4. e3 {[%clk 0:03:00]}  a6 {[%clk 0:02:57]} 5. Bxc4 {[%clk 0:03:01]}  b5 {[%clk 0:02:57]} 6. Bb3 {[%clk 0:03:01]}  e6 {[%clk 0:02:56]} 7. O-O {[%clk 0:03:01]}  c5 {[%clk 0:02:56]} 8. Qe2 {[%clk 0:03:02]}  Bb7 {[%clk 0:02:56]} 9. Rd1 {[%clk 0:03:02]}  Nbd7 {[%clk 0:02:53]} 10. a4 {[%clk 0:03:02]}  Qb6 {[%clk 0:02:52]} 11. axb5 {[%clk 0:02:59]}  axb5 {[%clk 0:02:50]} 12. Rxa8+ {[%clk 0:02:59]}  Bxa8 {[%clk 0:02:51]} 13. Nc3 {[%clk 0:02:59]}  c4 {[%clk 0:02:50]} 14. Bc2 {[%clk 0:02:57]}  Bd6 {[%clk 0:02:36]} 15. e4 {[%clk 0:02:56]}  e5 {[%clk 0:02:36]} 16. Be3 {[%clk 0:02:56]}  Qb8 {[%clk 0:02:24]} 17. d5 {[%clk 0:02:45]}  O-O {[%clk 0:02:22]} 18. Ra1 {[%clk 0:02:42]}  b4 {[%clk 0:02:09]} 19. Nb1 {[%clk 0:02:36]}  b3 {[%clk 0:02:07]} 20. Bd1 {[%clk 0:02:36]}  Nxe4 {[%clk 0:01:58]} 21. Qxc4 {[%clk 0:02:36]}  f5 {[%clk 0:01:58]} 22. Bxb3 {[%clk 0:02:33]}  Rc8 {[%clk 0:01:48]} 23. Qa6 {[%clk 0:02:19]}  Ndc5 {[%clk 0:01:35]} 24. Bxc5 {[%clk 0:02:11]}  Nxc5 {[%clk 0:01:35]} 0-1


[Site "https://www.chess.com"]

[Event "Titled Tuesday Blitz May 10 Early 2022"]
[White "Gatterer, Florian"]
[Black "Gurevich, Dmitry"]
[WhiteFideId "811688"]
[BlackFideId "2000407"]
[WhiteElo "2218"]
[BlackElo "2506"]
[Result "1/2-1/2"]
[Round "02"]
[TimeControl "180+1"]
[Date "2022.05.11"]
[WhiteClock "0:00:15"]
[BlackClock "0:00:47"]

1. c4 {[%clk 0:03:00]}  e6 {[%clk 0:02:59]} 2. Nf3 {[%clk 0:02:57]}  d5 {[%clk 0:02:58]} 3. e3 {[%clk 0:02:57]}  Nf6 {[%clk 0:02:58]} 4. Nc3 {[%clk 0:02:57]}  c5 {[%clk 0:02:58]} 5. cxd5 {[%clk 0:02:57]}  Nxd5 {[%clk 0:02:57]} 6. Nxd5 {[%clk 0:02:56]}  Qxd5 {[%clk 0:02:55]} 7. b3 {[%clk 0:02:55]}  Be7 {[%clk 0:02:54]} 8. Bb2 {[%clk 0:02:54]}  O-O {[%clk 0:02:53]} 9. Bc4 {[%clk 0:02:53]}  Qd6 {[%clk 0:02:49]} 10. Qe2 {[%clk 0:02:50]}  Nc6 {[%clk 0:02:48]} 11. O-O {[%clk 0:02:42]}  a6 {[%clk 0:02:47]} 12. d4 {[%clk 0:02:39]}  cxd4 {[%clk 0:02:47]} 13. Nxd4 {[%clk 0:02:37]}  Nxd4 {[%clk 0:02:47]} 14. Bxd4 {[%clk 0:02:36]}  b5 {[%clk 0:02:47]} 15. Bd3 {[%clk 0:02:33]}  Bb7 {[%clk 0:02:40]} 16. Rac1 {[%clk 0:02:18]}  Rac8 {[%clk 0:02:31]} 17. Bb1 {[%clk 0:01:56]}  Qd5 {[%clk 0:02:25]} 18. f3 {[%clk 0:01:52]}  g6 {[%clk 0:02:23]} 19. Rfd1 {[%clk 0:01:41]}  Qh5 {[%clk 0:02:21]} 20. Ba1 {[%clk 0:01:33]}  Rxc1 {[%clk 0:02:13]} 21. Rxc1 {[%clk 0:01:30]}  Rc8 {[%clk 0:02:10]} 22. Rxc8+ {[%clk 0:01:23]}  Bxc8 {[%clk 0:02:10]} 23. Qb2 {[%clk 0:01:16]}  f6 {[%clk 0:02:07]} 24. Qc3 {[%clk 0:01:10]}  Bd7 {[%clk 0:01:59]} 25. Qc7 {[%clk 0:01:01]}  Qd5 {[%clk 0:01:57]} 26. Bd4 {[%clk 0:01:00]}  e5 {[%clk 0:01:51]} 27. Be4 {[%clk 0:00:57]}  Qd6 {[%clk 0:01:42]} 28. Qxd6 {[%clk 0:00:55]}  Bxd6 {[%clk 0:01:42]} 29. Bd5+ {[%clk 0:00:55]}  Kf8 {[%clk 0:01:41]} 30. Bb6 {[%clk 0:00:54]}  b4 {[%clk 0:01:37]} 31. Bc4 {[%clk 0:00:49]}  Bc8 {[%clk 0:01:34]} 32. h3 {[%clk 0:00:47]}  h5 {[%clk 0:01:32]} 33. Kf2 {[%clk 0:00:44]}  h4 {[%clk 0:01:30]} 34. Ke2 {[%clk 0:00:37]}  Ke7 {[%clk 0:01:28]} 35. Bd5 {[%clk 0:00:36]}  Bd7 {[%clk 0:01:24]} 36. Kd3 {[%clk 0:00:32]}  f5 {[%clk 0:01:19]} 37. e4 {[%clk 0:00:31]}  fxe4+ {[%clk 0:01:13]} 38. fxe4 {[%clk 0:00:30]}  Bb5+ {[%clk 0:01:06]} 39. Bc4 {[%clk 0:00:30]}  Kd7 {[%clk 0:01:03]} 40. Bxb5+ {[%clk 0:00:28]}  axb5 {[%clk 0:01:02]} 41. Be3 {[%clk 0:00:26]}  Be7 {[%clk 0:01:01]} 42. Bd2 {[%clk 0:00:24]}  Ke6 {[%clk 0:01:01]} 43. Be3 {[%clk 0:00:23]}  Kf6 {[%clk 0:01:00]} 44. Bf2 {[%clk 0:00:20]}  g5 {[%clk 0:01:00]} 45. Be3 {[%clk 0:00:18]}  Kg6 {[%clk 0:01:00]} 46. Bf2 {[%clk 0:00:18]}  g4 {[%clk 0:01:00]} 47. Be3 {[%clk 0:00:18]}  Kh5 {[%clk 0:00:59]} 48. Bd2 {[%clk 0:00:16]}  Bd6 {[%clk 0:00:56]} 49. Be1 {[%clk 0:00:16]}  Bc5 {[%clk 0:00:56]} 50. Bd2 {[%clk 0:00:16]}  g3 {[%clk 0:00:50]} 51. Ke2 {[%clk 0:00:15]}  Be7 {[%clk 0:00:48]} 52. Kf3 {[%clk 0:00:15]}  Bd6 {[%clk 0:00:48]} 53. Be1 {[%clk 0:00:14]}  Be7 {[%clk 0:00:47]} 54. Bd2 {[%clk 0:00:14]}  Bd6 {[%clk 0:00:47]} 55. Be1 {[%clk 0:00:15]}  Be7 {[%clk 0:00:47]} 56. Bd2 {[%clk 0:00:15]} 1/2-1/2


[Site "https://www.chess.com"]

[Event "Titled Tuesday Blitz May 10 Early 2022"]
[White "Gharibyan, Mamikon"]
[Black "Mortazavi, Ali"]
[WhiteFideId "13308300"]
[BlackFideId "401323"]
[WhiteElo "2254"]
[BlackElo "2339"]
[Result "1-0"]
[Round "02"]
[TimeControl "180+1"]
[Date "2022.05.11"]
[WhiteClock "0:00:11"]
[BlackClock "0:00:10"]

1. c4 {[%clk 0:03:00]}  Nf6 {[%clk 0:02:59]} 2. Nc3 {[%clk 0:03:00]}  g6 {[%clk 0:03:00]} 3. d4 {[%clk 0:02:59]}  d6 {[%clk 0:03:00]} 4. e4 {[%clk 0:02:58]}  Bg7 {[%clk 0:03:01]} 5. Nf3 {[%clk 0:02:58]}  O-O {[%clk 0:03:02]} 6. Be2 {[%clk 0:02:59]}  Bg4 {[%clk 0:03:03]} 7. O-O {[%clk 0:02:53]}  Nbd7 {[%clk 0:03:03]} 8. h3 {[%clk 0:02:50]}  Bxf3 {[%clk 0:03:02]} 9. Bxf3 {[%clk 0:02:51]}  e5 {[%clk 0:03:03]} 10. d5 {[%clk 0:02:51]}  a5 {[%clk 0:03:02]} 11. g3 {[%clk 0:02:48]}  Ne8 {[%clk 0:03:03]} 12. h4 {[%clk 0:02:47]}  f5 {[%clk 0:02:58]} 13. h5 {[%clk 0:02:44]}  Nc5 {[%clk 0:02:51]} 14. Kg2 {[%clk 0:02:38]}  Nf6 {[%clk 0:02:39]} 15. Be3 {[%clk 0:02:29]}  Ncxe4 {[%clk 0:02:12]} 16. Bxe4 {[%clk 0:02:18]}  fxe4 {[%clk 0:02:11]} 17. h6 {[%clk 0:01:50]}  Bh8 {[%clk 0:02:10]} 18. Bg5 {[%clk 0:01:49]}  Qd7 {[%clk 0:01:54]} 19. Bxf6 {[%clk 0:01:47]}  Rxf6 {[%clk 0:01:54]} 20. Nxe4 {[%clk 0:01:48]}  Rf5 {[%clk 0:01:55]} 21. c5 {[%clk 0:01:42]}  Raf8 {[%clk 0:01:51]} 22. cxd6 {[%clk 0:01:41]}  cxd6 {[%clk 0:01:44]} 23. Qe2 {[%clk 0:01:33]}  Bf6 {[%clk 0:01:25]} 24. Rac1 {[%clk 0:01:09]}  Bd8 {[%clk 0:01:25]} 25. Rc3 {[%clk 0:01:04]}  Bb6 {[%clk 0:01:20]} 26. Rcc1 {[%clk 0:00:45]}  Bd4 {[%clk 0:01:13]} 27. g4 {[%clk 0:00:38]}  Rf4 {[%clk 0:01:09]} 28. f3 {[%clk 0:00:38]}  a4 {[%clk 0:00:47]} 29. Rc2 {[%clk 0:00:30]}  b6 {[%clk 0:00:40]} 30. b4 {[%clk 0:00:25]}  axb3 {[%clk 0:00:39]} 31. axb3 {[%clk 0:00:26]}  Bc5 {[%clk 0:00:39]} 32. Rc4 {[%clk 0:00:22]}  Qb5 {[%clk 0:00:30]} 33. Qd3 {[%clk 0:00:22]}  Qd7 {[%clk 0:00:27]} 34. b4 {[%clk 0:00:18]}  Bd4 {[%clk 0:00:21]} 35. Rc6 {[%clk 0:00:18]}  Rxe4 {[%clk 0:00:18]} 36. Qxe4 {[%clk 0:00:16]}  Qa7 {[%clk 0:00:17]} 37. Rfc1 {[%clk 0:00:13]}  Qa2+ {[%clk 0:00:16]} 38. R6c2 {[%clk 0:00:13]}  Qb3 {[%clk 0:00:16]} 39. g5 {[%clk 0:00:11]}  Qxb4 {[%clk 0:00:13]} 40. Qg4 {[%clk 0:00:11]}  Qb3 {[%clk 0:00:09]} 41. Qe6+ {[%clk 0:00:11]}  Kh8 {[%clk 0:00:10]} 42. Qf6+ {[%clk 0:00:11]}  Kg8 {[%clk 0:00:10]} 43. Qg7# {[%clk 0:00:11]} 1-0


[Site "https://www.chess.com"]

[Event "Titled Tuesday Blitz May 10 Early 2022"]
[White "Goltsev, Dmitry"]
[Black "Sahil, Tickoo"]
[WhiteFideId "24176710"]
[BlackFideId "5019710"]
[WhiteElo "2258"]
[BlackElo "2099"]
[Result "0-1"]
[Round "02"]
[TimeControl "180+1"]
[Date "2022.05.11"]
[WhiteClock "0:00:21"]
[BlackClock "0:00:13"]

1. e4 {[%clk 0:02:59]}  c5 {[%clk 0:02:59]} 2. Nf3 {[%clk 0:03:00]}  d6 {[%clk 0:02:59]} 3. d4 {[%clk 0:03:00]}  cxd4 {[%clk 0:03:00]} 4. Nxd4 {[%clk 0:03:01]}  Nf6 {[%clk 0:02:59]} 5. Nc3 {[%clk 0:03:01]}  a6 {[%clk 0:03:00]} 6. Bg5 {[%clk 0:03:02]}  e6 {[%clk 0:03:00]} 7. Qd2 {[%clk 0:03:02]}  Be7 {[%clk 0:02:56]} 8. O-O-O {[%clk 0:03:01]}  h6 {[%clk 0:02:54]} 9. Bxf6 {[%clk 0:03:00]}  Bxf6 {[%clk 0:02:54]} 10. f4 {[%clk 0:02:56]}  Qc7 {[%clk 0:02:51]} 11. Nf3 {[%clk 0:02:54]}  Bxc3 {[%clk 0:02:49]} 12. bxc3 {[%clk 0:02:54]}  O-O {[%clk 0:02:42]} 13. Qxd6 {[%clk 0:02:53]}  Qxc3 {[%clk 0:02:37]} 14. Qd4 {[%clk 0:02:50]}  Qa5 {[%clk 0:02:27]} 15. Bc4 {[%clk 0:02:43]}  Nc6 {[%clk 0:02:25]} 16. Qb2 {[%clk 0:02:41]}  b5 {[%clk 0:02:22]} 17. Bb3 {[%clk 0:02:40]}  Qb6 {[%clk 0:02:12]} 18. Rde1 {[%clk 0:02:32]}  a5 {[%clk 0:02:04]} 19. g4 {[%clk 0:02:25]}  a4 {[%clk 0:01:53]} 20. Bc4 {[%clk 0:02:24]}  Rb8 {[%clk 0:01:44]} 21. Bd3 {[%clk 0:02:21]}  b4 {[%clk 0:01:40]} 22. Rhg1 {[%clk 0:02:17]}  b3 {[%clk 0:01:25]} 23. cxb3 {[%clk 0:02:06]}  axb3 {[%clk 0:01:23]} 24. a3 {[%clk 0:02:05]}  Rd8 {[%clk 0:01:04]} 25. g5 {[%clk 0:01:42]}  h5 {[%clk 0:00:37]} 26. g6 {[%clk 0:01:35]}  f6 {[%clk 0:00:37]} 27. Qc3 {[%clk 0:01:21]}  Ba6 {[%clk 0:00:24]} 28. Bc4 {[%clk 0:00:51]}  Bxc4 {[%clk 0:00:20]} 29. Qxc4 {[%clk 0:00:52]}  Na5 {[%clk 0:00:20]} 30. Qe2 {[%clk 0:00:37]}  Rbc8+ {[%clk 0:00:19]} 31. Kb1 {[%clk 0:00:37]}  Nc4 {[%clk 0:00:18]} 32. Rc1 {[%clk 0:00:30]}  Nxa3+ {[%clk 0:00:18]} 33. Kb2 {[%clk 0:00:30]}  Rc2+ {[%clk 0:00:17]} 34. Rxc2 {[%clk 0:00:27]}  bxc2+ {[%clk 0:00:16]} 35. Ka2 {[%clk 0:00:24]}  Qb1+ {[%clk 0:00:15]} 36. Kxa3 {[%clk 0:00:20]}  Ra8+ {[%clk 0:00:14]} 37. Qa6 {[%clk 0:00:21]}  Rxa6# {[%clk 0:00:13]} 0-1


[Site "https://www.chess.com"]